Cogmind - Beta 16.1 @@@ ROGUE MODE // 2026.04.20 @ 23:47:31 Player: Nomad Result: Destroyed by G-47 Trooper with Particle Gun Performance ------------- Evolutions (2) 1000 Regions Visited (4) 800 Robots Destroyed (12) 60 Value Destroyed (303) 303 Prototype IDs (0) 0 Alien Tech Used (0) 0 Bonus (0) 0 TOTAL SCORE: 2163 Bonus ------- None Cogmind --------- Core Integrity 0/550 Matter 300/300 Energy 100/100 System Corruption 0% Temperature Hot (283) Movement Core (50) Location -8/Materials Parts ------- > --- POWER (3) -------- (None) > --- PROPULSION (3) --- (None) > --- UTILITY (2) ------ (None) > --- WEAPON (3) ------- (None) > --- INVENTORY (5) ---- Light Deuterium Engine Peak State ------------ > --- POWER ------------ Nuclear Core Nuclear Core Nuclear Core > --- PROPULSION ------- Aluminum Leg Aluminum Leg Aluminum Leg > --- UTILITY ---------- Improved Sensor Array Light Armor Plating > --- WEAPON ----------- EM Shotgun Medium Laser Medium Laser > --- INVENTORY -------- Nuclear Core Improved Signal Interpreter Improved Terrain Scanner Improved Weapon Shielding [Rating: 21] Favorites ----------- Power Nuclear Core Engine Ion Engine Power Core Nuclear Core Propulsion Aluminum Leg Leg Aluminum Leg Utility Light Armor Plating Device Improved Terrain Scanner Processor Improved Signal Interpreter Protection Light Armor Plating Weapon Medium Laser Energy Gun Medium Laser Energy Cannon Particle Cannon Ballistic Gun Assault Rifle Build | -11 -10 -9 -9 -8 ------- Run | Yrd Mat Mat Min Mat Slots Evolved 4 | . . 2 . 2 Power 2 | . . 1 . 1 Propulsion 1 | . . 1 . . Utility . | . . . . . Weapon 1 | . . . . 1 Parts Attached 22 | 5 4 3 . 10 Power 8 | 1 1 2 . 4 Engine 2 | 1 1 . . . Core 6 | . . 2 . 4 Reactor . | . . . . . Propulsion 3 | 2 1 . . . Treads . | . . . . . Leg 3 | 2 1 . . . Wheel . | . . . . . Hover . | . . . . . Flight . | . . . . . Utility 5 | . 1 1 . 3 Device 2 | . . 1 . 1 Storage . | . . . . . Processor 1 | . . . . 1 Hackware . | . . . . . Protection 2 | . 1 . . 1 Artifact . | . . . . . Weapon 6 | 2 1 . . 3 Energy Gun 3 | 1 1 . . 1 Energy Cannon 2 | . . . . 2 Ballistic Gun 1 | 1 . . . . Ballistic Cannon . | . . . . . Launcher . | . . . . . Special Weapon . | . . . . . Impact Weapon . | . . . . . Slashing Weapon . | . . . . . Piercing Weapon . | . . . . . Special Melee Weapon . | . . . . . Unidentified Prototypes . | . . . . . Parts Lost 15 | . . . . 15 Power 6 | . . . . 6 Propulsion 3 | . . . . 3 Utility 2 | . . . . 2 Weapon 4 | . . . . 4 Highest Loss Streak 7 | . . . . 7 To Critical Strikes . | . . . . . Average Backups 2 | 1 1 2 5 2 Power 1 | 1 1 1 2 1 Propulsion . | . . . . . Utility . | . . . 2 1 Weapon . | . . . 1 . Tool/Special . | . . . . . Unused Backups 2 | . . 1 . 1 Power 2 | . . 1 . 1 Propulsion . | . . . . . Utility . | . . . . . Weapon . | . . . . . Tool/Special . | . . . . . Average Slot Usage (%) 74 | . 71 88 100 70 Engine 5 | . 12 13 . . Core 15 | . . 6 22 24 Leg 20 | . 26 32 33 14 Device 2 | . . 2 11 3 Protection 7 | . 5 11 11 7 Energy Gun 16 | . 18 22 22 13 Energy Cannon 3 | . . . . 6 Ballistic Gun 1 | . 7 . . . Peak Build Rating 21 | 5 6 16 16 21 Average Rating 12 | 3 5 10 16 16 On Entrance 8 | . 5 6 16 16 Avg Prop Armor Cover (%) . | . . . . . Naked Turns 11 | . 7 . . 4 Heaviest Build 32 | 9 12 22 22 32 Greatest Support 30 | 20 20 30 30 30 Greatest Overweight (x) 9 | 1 2 . . 9 Average Overweight (x) . | . . . . 2 Largest Inventory Capacity 5 | 5 5 5 5 5 Average Capacity 5 | 5 5 5 5 5 Most Carried 5 | 5 5 5 5 5 Average Carried 2 | 1 1 2 5 2 Final Capacity 5 | 5 5 5 5 5 Final Carried 5 | 1 2 5 5 1 Class Distribution -------------------- 81% | Mutant 18% | Tank Dominant Class ---------------- Mutant | -10/Materials Mutant | -9/Materials Mutant | -9/Mines Mutant | -8/Materials Resources | -11 -10 -9 -9 -8 ----------- Run | Yrd Mat Mat Min Mat Matter Collected 480 | 250 40 . . 190 Remotely . | . . . . . Salvage Created 356 | . 80 . . 276 Parts 28 | . 9 . . 19 Haulers Intercepted . | . . . . . Recyclers Shooed . | . . . . . Parts Field Recycled . | . . . . . Retrieved Matter . | . . . . . Parts Self-Destructed . | . . . . . Prevented . | . . . . . Parts Restored . | . . . . . Kills | -11 -10 -9 -9 -8 ------- Run | Yrd Mat Mat Min Mat Combat Hostiles Destroyed 11 | . 4 . . 7 Guns 6 | . 4 . . 2 Cannons 4 | . . . . 4 Classes Destroyed 5 | . 2 . . 3 Builder 1 | . . . . 1 Swarmer 6 | . 3 . . 3 Grunt 3 | . 1 . . 2 Sentry 1 | . . . . 1 Hunter 1 | . . . . 1 Best Kill Streak 3 | . 3 . . 3 Combat Bots Only 3 | . 3 . . 3 Max Kills in Single Turn 2 | . 1 . . 2 Gunslinging . | . . . . . Exploded . | . . . . . Melee . | . . . . . Uniques/NPCs Destroyed . | . . . . . Combat | -11 -10 -9 -9 -8 -------- Run | Yrd Mat Mat Min Mat Hostile Shots Fired 212 | . 15 3 19 175 Missed 65 | . 2 2 9 52 Hits 147 | . 13 1 10 123 Projectile 147 | . 13 1 10 123 Critical Strikes 5 | . . . 1 4 Damage Taken 1877 | . 101 10 81 1685 Core 595 | . 27 . 6 562 Absorbed by Shields . | . . . . . Redirected to Shielding 100 | . . . . 100 Core Remaining (%) 95 | 100 89 . 98 . Volleys Fired 30 | . 10 . . 20 Largest 2 | . 2 . . 2 Hottest 136 | . 70 . . 136 Shots Fired 60 | . 20 . . 40 Gun 38 | . 20 . . 18 Cannon 22 | . . . . 22 Launcher . | . . . . . Special . | . . . . . Kinetic 10 | . 10 . . . Thermal 41 | . 10 . . 31 Explosive . | . . . . . Electromagnetic 9 | . . . . 9 Robot Hit Streak 8 | . 3 . . 8 Robot Miss Streak 3 | . 2 . . 3 Penetration Max . | . . . . . Secondary Targets 2 | . 2 . . . Max Gunslinging Chain 1 | . 1 . . . Shots Hit Robots 36 | . 8 . . 28 Core Hits 19 | . 6 . . 13 Critical Kills 1 | . . . . 1 Critical Parts Destroyed . | . . . . . Critical Strikes 2 | . 1 . . 1 Burn 1 | . 1 . . . Meltdown 1 | . . . . 1 Melee Attacks . | . . . . . Impact . | . . . . . Slashing . | . . . . . Piercing . | . . . . . Sneak Attacks . | . . . . . Combat Hostiles . | . . . . . Follow-up Attacks . | . . . . . Damage Inflicted 714 | . 116 3 . 595 Guns 320 | . 115 . . 205 Cannons 288 | . . . . 288 Explosions 80 | . . . . 80 Melee . | . . . . . Ramming 26 | . 1 3 . 22 Kinetic 38 | . 38 . . . Thermal 520 | . 77 . . 443 Explosive . | . . . . . Electromagnetic 130 | . . . . 130 Impact . | . . . . . Slashing . | . . . . . Piercing . | . . . . . Highest Corruption . | . . . . . Average Corruption . | . . . . . Corruption Purged . | . . . . . Corruption Blocked . | . . . . . Overload Shots . | . . . . . Overflow Damage . | . . . . . Projectiles . | . . . . . Explosions . | . . . . . Melee . | . . . . . Knockbacks . | . . . . . Impact . | . . . . . Kinetic . | . . . . . Secondary . | . . . . . Self-Inflicted Damage 15 | . . . . 15 Shots 1 | . . . . 1 Rammed 10 | . . . . 10 Targets Rammed 17 | . 1 1 . 15 Kicked 7 | . 1 1 . 5 Crushed . | . . . . . Highest Temperature 561 | . 48 . . 561 Average Temperature 202 | . 19 . . 242 Received Heat Transfer 444 | . 12 . . 432 Effects 16 | . . . . 16 Shutdowns 9 | . . . . 9 Energy Bleed 1 | . . . . 1 Interference 1 | . . . . 1 Matter Decay 2 | . . . . 2 Damage (minor) 2 | . . . . 2 Damage (core) 1 | . . . . 1 Siege Activations . | . . . . . Martial Activations . | . . . . . Shielding Activations . | . . . . . Robots Disrupted . | . . . . . Combat Hostiles . | . . . . . Robots Corrupted . | . . . . . Combat Hostiles . | . . . . . Parts Fried 1 | . . . . 1 Impact Corruptions . | . . . . . Robots Melted 1 | . . . . 1 Combat Hostiles 1 | . . . . 1 Parts Melted 1 | . 1 . . . Heat Transferred 1186 | . 296 . . 890 Parts Sabotaged . | . . . . . Parts Stolen . | . . . . . Parts Stripped . | . . . . . Power Chain Reactions 1 | . . . . 1 Alert | -11 -10 -9 -9 -8 ------- Run | Yrd Mat Mat Min Mat Maximum Alert Level . | . . . . . Low Security (%) 100 | 100 100 100 100 100 Level 1 . | . . . . . Level 2 . | . . . . . Level 3 . | . . . . . Level 4 . | . . . . . Level 5 . | . . . . . High Security . | . . . . . Max Security . | . . . . . Peak Influence 70 | . 70 . . 70 Initial . | . . . . . Average 14 | . 26 . . 13 Influence Increases 307 | . 100 . . 207 Destroy 0b10 Robot/C 220 | . 80 . . 140 Destroy 0b10 Robot/NC 5 | . . . . 5 Destroy Leader 60 | . 20 . . 40 Disable Machine 15 | . . . . 15 Destroy Structure 7 | . . . . 7 Influence Decreases 307 | . 100 . . 207 Time Decay 236 | . 100 . . 136 Lost Part 71 | . . . . 71 Squads Dispatched 3 | . 1 . . 2 Investigation . | . . . . . Extermination . | . . . . . Reinforcement 3 | . 1 . . 2 Assault . | . . . . . Garrison . | . . . . . Intercept . | . . . . . Searches Triggered . | . . . . . Construction Impeded 1 | . . . . 1 Haulers Reinforced . | . . . . . Active Scanning Responses . | . . . . . Cargo Convoy Interrupts . | . . . . . Stealth | -11 -10 -9 -9 -8 --------- Run | Yrd Mat Mat Min Mat Distress Signals 1 | . . 1 . . Communications Jammed . | . . . . . Distress Signals . | . . . . . Times Spotted 24 | . 8 3 3 10 Peak Tracking Total 5 | . 4 3 3 5 Tactical Retreats . | . . . . . Traps | -11 -10 -9 -9 -8 ------- Run | Yrd Mat Mat Min Mat Traps Triggered 3 | . 3 . . . Indirectly . | . . . . . Trap Hack Attempts . | . . . . . Triggered . | . . . . . Disarmed . | . . . . . Reprogrammed . | . . . . . Reused . | . . . . . Traps Extracted . | . . . . . Installed . | . . . . . Triggered . | . . . . . Machines | -11 -10 -9 -9 -8 ---------- Run | Yrd Mat Mat Min Mat Machines Disabled 1 | . . . . 1 Max in Single Turn 1 | . . . . 1 Machines Repaired . | . . . . . Machines Dismantled . | . . . . . Machines Sabotaged . | . . . . . Overloaded Fab Kills . | . . . . . Hacking | -11 -10 -9 -9 -8 --------- Run | Yrd Mat Mat Min Mat Machines Accessed 1 | . 1 . . . Terminals 1 | . 1 . . . Fabricators . | . . . . . Repair Stations . | . . . . . Recycling Units . | . . . . . Scanalyzers . | . . . . . Garrison Access . | . . . . . Total Hacks 2 | . 2 . . . Successful 1 | . 1 . . . Failed 1 | . 1 . . . Catastrophic . | . . . . . Database Lockouts . | . . . . . Manual . | . . . . . Terminals 2 | . 2 . . . Fabricators . | . . . . . Repair Stations . | . . . . . Recycling Units . | . . . . . Scanalyzers . | . . . . . Garrison Access . | . . . . . Terminal Hacks 1 | . 1 . . . Zone Layout 1 | . 1 . . . Fabricator Hacks . | . . . . . Repair Station Hacks . | . . . . . Recycling Unit Hacks . | . . . . . Scanalyzer . | . . . . . Garrison Access Hacks . | . . . . . Unauthorized Hacks . | . . . . . Terminals . | . . . . . Fabricators . | . . . . . Repair Stations . | . . . . . Recycling Units . | . . . . . Scanalyzers . | . . . . . Garrison Access . | . . . . . Data Cores Recovered . | . . . . . Used . | . . . . . Hacking Detections . | . . . . . Full Trace Events . | . . . . . Feedback Events . | . . . . . Feedback Blocked . | . . . . . Robot Schematics Acquired . | . . . . . Robots Built . | . . . . . Authchips . | . . . . . Time . | . . . . . Total Robot Build Rating . | . . . . . Part Schematics Acquired . | . . . . . Parts Built . | . . . . . Authchips . | . . . . . Time . | . . . . . Total Part Build Rating . | . . . . . Part Studies Acquired . | . . . . . Parts Repaired . | . . . . . Time . | . . . . . Parts Recycled . | . . . . . Recycled Matter . | . . . . . Retrieved Matter . | . . . . . Retrieved Components . | . . . . . Parts Scanalyzed . | . . . . . Part Schematics Acquired . | . . . . . Parts Damaged . | . . . . . Bothacking | -11 -10 -9 -9 -8 ------------ Run | Yrd Mat Mat Min Mat Used RIF Installer . | . . . . . Robots Hacked . | . . . . . Non-combat . | . . . . . Combat . | . . . . . Robot Hacks Applied . | . . . . . Relay Couplers Released . | . . . . . Fabnet Peak Effective % . | . . . . . Robots Rewired . | . . . . . Allies Hacked . | . . . . . Hacks Repelled . | . . . . . Allies | -11 -10 -9 -9 -8 -------- Run | Yrd Mat Mat Min Mat Total Allies . | . . . . . Largest Group . | . . . . . Highest-Rated Group . | . . . . . Highest-Rated Ally . | . . . . . Total Orders . | . . . . . Ally Attacks . | . . . . . Total Damage . | . . . . . Kills . | . . . . . Allies Corrupted . | . . . . . Allies Melted . | . . . . . Intel | -11 -10 -9 -9 -8 ------- Run | Yrd Mat Mat Min Mat Active Infowar (turns) 326 | . . 45 14 267 Sensors 111 | . . . . 111 Terrain 215 | . . 45 14 156 Robot Analysis Total . | . . . . . Derelict Logs Recovered . | . . . . . Drone Launches . | . . . . . Drone Recoveries . | . . . . . Exploration | -11 -10 -9 -9 -8 ------------- Run | Yrd Mat Mat Min Mat Turns Passed 1092 | 66 260 149 14 603 Spaces Moved 544 | 54 158 110 12 210 Core 87 | 21 8 . . 58 Treads . | . . . . . Legs 457 | 33 150 110 12 152 Wheels . | . . . . . Hover . | . . . . . Flight . | . . . . . Fastest Speed 50 | 50 50 120 120 50 Average Speed 153 | 94 117 120 120 215 Slowest Speed 500 | 120 150 120 120 500 Overloaded Moves . | . . . . . Propulsion Burnouts . | . . . . . Robots Hopped . | . . . . . Potential Cave-ins . | . . . . . Cave-ins Triggered . | . . . . . Exploration Rate (%) 15 | 3 34 13 9 16 Regions Visited 4 Branch Regions 1 Pre-discovered Areas . | . . . . . Known Exits Taken . | . . . . . Unknown Exits Taken 4 | 1 1 1 1 . Scrap Searched . | . . . . . Spaces Dug . | . . . . . Terrain Destroyed 5 | . . . . 5 Melee . | . . . . . Projectile . | . . . . . AOE 5 | . . . . 5 Terrain Rammed . | . . . . . Walls Destroyed . | . . . . . Machines Disabled . | . . . . . Actions | -11 -10 -9 -9 -8 --------- Run | Yrd Mat Mat Min Mat Total 736 | 69 214 129 11 313 Wait 79 | 5 27 1 . 46 Move 540 | 53 157 109 11 210 Hop . | . . . . . Pick Up 30 | 6 9 9 . 6 Fast Attach . | . . . . . Attach 28 | 5 8 5 . 10 Detach 5 | . 1 1 . 3 Swap . | . . . . . Drop 7 | . 1 3 . 3 Fire 30 | . 10 . . 20 Melee . | . . . . . Ram 10 | . . . . 10 Kick 7 | . 1 1 . 5 Crush . | . . . . . Escape Stasis . | . . . . . Rewire . | . . . . . Trap . | . . . . . Miscellaneous . | . . . . . Route ------- -11/Scrapyard -10/Materials -9/Materials -9/Mines -8/Materials History --------- Turn | Location | Event 14 | -11/Scrapyard | Discovered new exit (range 13) 67 | -11/Scrapyard | Entered Materials 305 | -10/Materials | Build established: Mutant 312 | -10/Materials | Discovered new exit (range 10) 327 | -10/Materials | Entered another Materials area 327 | -9/Materials | Evolved 2 slots: Power x1, Propulsion x1 462 | -9/Materials | Discovered new exit (range 5) 476 | -9/Materials | Entered Mines 476 | -9/Mines | Discovered new exit (range 11) 490 | -9/Mines | Entered Materials 490 | -8/Materials | Evolved 2 slots: Power x1, Weapon x1 895 | -8/Materials | Lost 7 parts (3p2n2w) 1024 | -8/Materials | Core integrity fell below 50% 1065 | -8/Materials | Core integrity fell below 20% 1093 | -8/Materials | Destroyed by G-47 Trooper with Particle Gun Last Messages --------------- U-05 Engineer builds a Door. Power failure, Lgt. Nuclear Core shutdown. Overheating: Core damaged (-99). Overheating: Matter decay (-41). Overheating: Energy bleed (-45). Lgt. Nuclear Core destroyed. G-47 Trooper suffers critical hit (Meltdown). [Achievement: It's Just You] Overheating: Particle Cannon damaged (-13). Power failure, Nuclear Core shutdown. Scanalyzer disabled. Particle Cannon destroyed. Overheating: System interference. Particle Cannon temporarily disabled. Slammed into G-47 Trooper. Acquired 33 matter. Nuclear Core destroyed. Slammed into G-47 Trooper. Particle Cannon destroyed. Slammed into G-47 Trooper. Map ----- +----------------------------------------------------+ | ???????????????????????????????????????# ^^ | | ??????????????????????????????????#????#^ ^ | | ??????????????????????????????????????##^ """" "" | | ????????????????????????????????######## "" T" | | ????????????????????????# ##### [ "" "" | | ?????????????????????? =!|! | | ????????????????????????????##### !!%|[ | | ????????????????????????????????# #######+### | | ???????????###+################## ## [[== # | | ?????#+##### ## """ # | | ????+ T ## """" # | | ????# ## """" = # | | ????# ## ! # | | ????# ########### | | ????# != ###### + | | ????# = ! * # # # | | ????# * * # # | | ??? / """ * ######## # # # | | ???????""" *= ########+## ########### | | ???????""" #! #?? #?????????# | | ????? = =#g"S [ ##???#??#???#### | | ??? %* *+% ""=| ##???#?????##! | | ????+####+#############[%"" ##????#???##! | | ????????# #??????# % #??????????#! | | ????????# ???????# g """ #??????#???#! | | ????????# ???????# @%""" #????#?#???#! #### | | ????????# ????????# %""" #??????????##! #??? | | ????????# ????????# % #???????????####??? | | ????????# ?????????##########???????????#?????? | | ????????#####??????????????????????????????#?????? | | ??????????????????????????????????????#???#??????? | | ??????????????????????????????????????????##?????? | | ?????????????????????????????????????????????????? | | | | | | | | | | | | | | | | | | | | | | | | | | | | | | | | | | | +----------------------------------------------------+ Best States ------------- Heat Dissipation 31 Energy Generation 32 Energy Capacity 520 Matter Stores 300 Matter Capacity 300 Sight Range 16 Robot Scan Range 15 Terrain Scan Range 16 Terrain Scan Density 10 Armor Coverage 150 Weapon Shielding 66 Evasion (%) 55 Item Schematics ----------------- None Robot Schematics ------------------ None Fabricated ------------ Nothing Repaired ---------- Nothing Studied --------- None Alien Tech Used ----------------- None Achievements -------------- It's Just You Challenges ------------ None Game ------ Seed RecoilHugeGuard Manual? 0 Play Time 00:13:06 Cumulative 5.9 hours Start 2026.04.20 @ 16:24:49 End 2026.04.20 @ 23:47:31 Sessions 3 Manual Loads 0 Difficulty Rogue Special Mode None Game No. 19 Rogue 19 Adventurer 0 Explorer 0 Win Type - Total 0 Types 0/0/0/0/0/0/0/0/0/0 Lore% 7 Gallery% 10 Achievement% 9 Wizard Run 0 Options --------- Layout 1 ASCII 0 Keyboard 0 Movement Numpad Keybinds 0 Fullscreen 1 Font 32/SmallcapsGlow Map View 50x35 Zoom Use 0% Tactical HUD 0 Map Filters NONE Filters NONE Steam 1 RUN: a2f95b88-1e8f-44fb-ba5f-cf63cb133a5e